Cogmind - Beta 12 @@@ ROGUE MODE // 2023.11.14 @ 20:25:12 Player: epb Result: Destroyed by H-66 Slayer with Gauss Rifle Performance ------------- Evolutions (4) 2000 Regions Visited (7) 1400 Robots Destroyed (26) 130 Value Destroyed (793) 793 Prototype IDs (3) 60 Alien Tech Used (0) 0 Bonus (1028) 1028 TOTAL SCORE: 5411 Bonus ------- High Alert Combat Kills 203 Follower Combat Kills 335 Entered Garrisons 200 Met Imprinter 300 Was Imprinted 300 Friendly Fire -310 Cogmind --------- Core Integrity 0/850 Matter 292/300 Energy 100/100 System Corruption 1% Temperature Cool (9) Movement Core (350) Ox6 Location -6/Garrison Parts ------- > --- POWER (2) -------- (None) > --- PROPULSION (4) --- (None) > --- UTILITY (5) ------ Large Storage Unit > --- WEAPON (4) ------- (None) > --- INVENTORY (15) --- Ion Engine Light Ion Engine Angular Momentum Engine Advanced Weight Redist. System Advanced Visual Processing Unit Relay Coupler [Proto] (9) Peak State ------------ > --- POWER ------------ Heavy Ion Engine Improved Deuterium Engine > --- PROPULSION ------- Armored Huge Wheel Armored Huge Wheel > --- UTILITY ---------- Advanced Heat Sink Large Storage Unit Advanced Visual Processing Unit > --- WEAPON ----------- Heavy Plasma Cannon Heavy Plasma Cannon Heavy Plasma Cannon High-powered Shotgun > --- INVENTORY -------- Ion Engine Light Ion Engine Carbon-fiber Leg Carbon-fiber Leg Carbon-fiber Leg Advanced Weight Redist. System Advanced Visual Processing Unit Relay Coupler [Proto] Heavy Plasma Cannon [Rating: 53] Favorites ----------- Power Heavy Ion Engine Engine Heavy Ion Engine Power Core Light Nuclear Core Propulsion Wheel Leg Carbon-fiber Leg Wheel Wheel Utility Large Storage Unit Device Improved Sensor Array Storage Large Storage Unit Processor Advanced Visual Processing Unit Protection Medium Armor Plating Weapon Small Laser Energy Gun Small Laser Energy Cannon Heavy Plasma Cannon Ballistic Gun Light Assault Rifle Ballistic Cannon Gauss Cannon Launcher Mini Grenade Launcher Build | -11 -10 -9 -9 -7 -6 -6 -6 ------- Run | Jun Mat Mat Min Zio Pro Fac Gar Slots Evolved 8 | . . 2 . . . 6 . Power 1 | . . . . . . 1 . Propulsion 2 | . . 1 . . . 1 . Utility 3 | . . . . . . 3 . Weapon 2 | . . 1 . . . 1 . Parts Attached 41 | 6 3 7 1 . 5 7 12 Power 5 | 1 . 2 . . . . 2 Engine 4 | 1 . 2 . . . . 1 Core 1 | . . . . . . . 1 Reactor . | . . . . . . . . Propulsion 9 | 2 . 1 . . 1 2 3 Treads . | . . . . . . . . Leg 3 | . . . . . . . 3 Wheel 6 | 2 . 1 . . 1 2 . Hover . | . . . . . . . . Flight . | . . . . . . . . Utility 10 | 1 1 3 . . . 4 1 Device 5 | . 1 1 . . . 2 1 Storage 3 | 1 . 2 . . . . . Processor 1 | . . . . . . 1 . Hackware . | . . . . . . . . Protection 1 | . . . . . . 1 . Artifact . | . . . . . . . . Weapon 17 | 2 2 1 1 . 4 1 6 Energy Gun 3 | 1 1 . . . . 1 . Energy Cannon 5 | . . . . . . . 5 Ballistic Gun 3 | 1 . . . . 1 . 1 Ballistic Cannon 1 | . . . . . 1 . . Launcher 5 | . 1 1 1 . 2 . . Special Weapon . | . . . . . . . . Impact Weapon . | . . . . . . . . Slashing Weapon . | . . . . . . . . Piercing Weapon . | . . . . . . . . Special Melee Weapon . | . . . . . . . . Unidentified Prototypes 1 | . . 1 . . . . . Parts Lost 22 | . 1 . . . 5 . 16 Power 3 | . . . . . . . 3 Propulsion 7 | . . . . . 3 . 4 Utility 3 | . . . . . . . 3 Weapon 9 | . 1 . . . 2 . 6 Highest Loss Streak 8 | . 1 . . . 4 . 8 To Critical Strikes . | . . . . . . . . Average Slot Usage (%) 90 | . 96 97 100 100 88 73 64 Engine 10 | . 14 10 11 11 11 6 6 Wheel 24 | . 28 33 33 33 22 6 12 Device 11 | . 14 11 11 11 11 13 5 Storage 10 | . 14 11 11 11 11 6 6 Processor 1 | . . . . . . 5 5 Energy Gun 7 | . 5 11 11 11 4 6 . Energy Cannon 1 | . . . . . . . 14 Ballistic Gun 10 | . 14 11 11 11 10 6 4 Ballistic Cannon 2 | . . . . . 6 6 . Launcher 8 | . 4 9 11 11 11 6 . Naked Turns . | . . . . . . . . Heaviest Build 72 | 12 15 32 34 34 40 54 72 Greatest Support 56 | 20 20 30 30 30 30 56 56 Greatest Overweight (x) 6 | . . 1 1 1 3 5 6 Average Overweight (x) 1 | . . . 1 1 1 4 1 Largest Inventory Capacity 15 | 8 8 15 15 15 15 15 15 Average Capacity 13 | 6 8 10 15 15 15 15 15 Most Carried 11 | . 5 8 10 10 11 10 10 Average Carried 7 | . 2 4 9 10 7 6 7 Final Capacity 15 | 8 8 15 15 15 15 15 15 Final Carried 11 | . 4 8 10 10 11 7 6 Class Distribution -------------------- 77% | Mutant 22% | Skirmisher Dominant Class ---------------- Mutant | -10/Materials Skirmisher | -9/Materials Mutant | -9/Mines Mutant | -7/Zion Mutant | -6/Proximity Caves Skirmisher | -6/Factory Skirmisher | -6/Garrison Resources | -11 -10 -9 -9 -7 -6 -6 -6 ----------- Run | Jun Mat Mat Min Zio Pro Fac Gar Matter Collected 1008 | 194 84 78 83 . 150 156 263 Remotely . | . . . . . . . . Salvage Created 834 | . 84 . 184 . 150 67 349 Parts 39 | . 7 . 8 . 8 2 14 Haulers Intercepted . | . . . . . . . . Recyclers Shooed . | . . . . . . . . Parts Field Recycled . | . . . . . . . . Retrieved Matter . | . . . . . . . . Parts Self-Destructed 6 | . . . . . 6 . . Prevented 3 | . . . . . 3 . . Kills | -11 -10 -9 -9 -7 -6 -6 -6 ------- Run | Jun Mat Mat Min Zio Pro Fac Gar Combat Hostiles Destroyed 21 | . 4 . . . 8 1 8 Guns 5 | . 4 . . . . 1 . Cannons 6 | . . . . . 1 . 5 AOE 9 | . . . . . 7 . 2 Classes Destroyed 9 | . 2 . 3 . . 1 3 Worker 1 | . . . 1 . . . . Tunneler 1 | . . . 1 . . . . Recycler 2 | . . . 2 . . . . Swarmer 7 | . 3 . . . 4 . . Cutter 3 | . . . . . . . 3 Grunt 8 | . 1 . . . 4 . 3 Sentry 2 | . . . . . . 1 1 Behemoth 1 | . . . . . . . 1 Mutant 1 | . . . . . . . 1 Best Kill Streak 4 | . 3 . 2 . 4 1 3 Combat Bots Only 4 | . 3 . . . 4 1 3 Max Kills in Single Turn 4 | . 1 . 1 . 4 1 2 Gunslinging . | . . . . . . . . Exploded 3 | . . . . . 3 . 1 Melee . | . . . . . . . . Uniques/NPCs Destroyed . | . . . . . . . . Combat | -11 -10 -9 -9 -7 -6 -6 -6 -------- Run | Jun Mat Mat Min Zio Pro Fac Gar Damage Taken 3510 | . 245 . 25 . 687 176 2377 Core 1122 | . 80 . . . 172 22 848 Absorbed by Shields . | . . . . . . . . Core Remaining (%) 75 | 100 68 . . . 57 . . Volleys Fired 78 | . 31 . 5 . 13 6 23 Largest 4 | . 1 . 3 . 3 3 4 Hottest 295 | . 20 . 90 . 103 143 295 Shots Fired 147 | . 31 . 13 . 32 18 53 Gun 89 | . 31 . 10 . 19 12 17 Cannon 43 | . . . . . 5 6 32 Launcher 15 | . . . 3 . 8 . 4 Special . | . . . . . . . . Kinetic 86 | . 31 . 5 . 17 12 21 Thermal 40 | . . . 5 . 7 . 28 Explosive 15 | . . . 3 . 8 . 4 Electromagnetic 6 | . . . . . . 6 . Robot Hit Streak 9 | . 8 . 9 . 6 6 9 Robot Miss Streak 8 | . 3 . 1 . 7 4 8 Penetration Max . | . . . . . . . . Secondary Targets . | . . . . . . . . Shots Hit Robots 95 | . 22 . 7 . 20 12 34 Core Hits 66 | . 8 . 8 . 21 10 19 Critical Kills 1 | . . . . . . . 1 Critical Parts Destroyed 1 | . . . . . . . 1 Critical Strikes 6 | . . . . . 1 2 3 Meltdown 1 | . . . . . . . 1 Destroy 1 | . . . . . . . 1 Blast 4 | . . . . . 1 2 1 Melee Attacks . | . . . . . . . . Impact . | . . . . . . . . Slashing . | . . . . . . . . Piercing . | . . . . . . . . Sneak Attacks . | . . . . . . . . Combat Hostiles . | . . . . . . . . Follow-up Attacks . | . . . . . . . . Damage Inflicted 2944 | . 172 . 201 . 1075 353 1143 Guns 937 | . 172 . 59 . 202 231 273 Cannons 856 | . . . . . 81 122 653 Explosions 1151 | . . . 142 . 792 . 217 Melee . | . . . . . . . . Ramming . | . . . . . . . . Kinetic 1071 | . 172 . 15 . 241 289 354 Thermal 658 | . . . 44 . 42 . 572 Explosive 1151 | . . . 142 . 792 . 217 Electromagnetic 64 | . . . . . . 64 . Impact . | . . . . . . . . Slashing . | . . . . . . . . Piercing . | . . . . . . . . Highest Corruption 5 | . . 5 5 5 . . 1 Average Corruption 3 | . . 5 5 5 . . 1 Corruption Purged . | . . . . . . . . Corruption Blocked . | . . . . . . . . Effects 6 | . . 2 2 1 . . 1 Message Errors 2 | . . 1 . . . . 1 Matter Fused 1 | . . . 1 . . . . Energy Discharges 2 | . . 1 . 1 . . . Misfires 1 | . . . 1 . . . . Overload Shots . | . . . . . . . . Overflow Damage 83 | . . . 15 . 12 27 29 Projectiles 27 | . . . . . . 27 . Explosions 56 | . . . 15 . 12 . 29 Melee . | . . . . . . . . Knockbacks . | . . . . . . . . Impact . | . . . . . . . . Kinetic . | . . . . . . . . Secondary . | . . . . . . . . Self-Inflicted Damage 151 | . . . 26 . 49 . 76 Shots 6 | . . . 2 . 1 . 3 Rammed . | . . . . . . . . Targets Rammed . | . . . . . . . . Kicked . | . . . . . . . . Crushed . | . . . . . . . . Highest Temperature 619 | . 6 . 48 . 294 132 619 Average Temperature 178 | . 6 . 19 . 113 49 261 Received Heat Transfer 904 | . 36 . . . 280 42 546 Effects 22 | . . . . . 3 . 19 Shutdowns 4 | . . . . . . . 4 Energy Bleed 1 | . . . . . . . 1 Interference 7 | . . . . . 3 . 4 Matter Decay 2 | . . . . . . . 2 Short Circuit 1 | . . . . . . . 1 Damage (minor) 2 | . . . . . . . 2 Damage (major) 2 | . . . . . . . 2 Damage (core) 3 | . . . . . . . 3 Siege Activations . | . . . . . . . . Robots Corrupted . | . . . . . . . . Combat Hostiles . | . . . . . . . . Parts Fried 2 | . . . . . . . 2 Impact Corruptions . | . . . . . . . . Robots Melted 1 | . . . . . . . 1 Combat Hostiles 1 | . . . . . . . 1 Parts Melted 3 | . . . . . 1 . 2 Heat Transferred 1100 | . . . 100 . 100 . 900 Parts Sabotaged . | . . . . . . . . Parts Stolen . | . . . . . . . . Parts Stripped . | . . . . . . . . Power Chain Reactions . | . . . . . . . . Missiles Intercepted . | . . . . . . . . Alert | -11 -10 -9 -9 -7 -6 -6 -6 ------- Run | Jun Mat Mat Min Zio Pro Fac Gar Peak Influence 1204 | . 95 56 61 . . 1204 1030 Initial 994 | . . 39 21 . . 994 842 Average 453 | . 26 44 34 . . 1015 928 Maximum Alert Level 4 | . . . . . . 4 3 Low Security (%) 55 | 100 100 100 100 . . . . Level 1 . | . . . . . . . . Level 2 . | . . . . . . . . Level 3 42 | . . . . . . 91 100 Level 4 2 | . . . . . . 8 . Level 5 . | . . . . . . . . High Security . | . . . . . . . . Max Security . | . . . . . . . . Squads Dispatched 6 | . 1 1 . . . 4 . Investigation 1 | . 1 . . . . . . Extermination 1 | . . . . . . 1 . Reinforcement 1 | . . 1 . . . . . Assault . | . . . . . . . . Garrison 3 | . . . . . . 3 . Intercept . | . . . . . . . . Searches Triggered . | . . . . . . . . Construction Impeded . | . . . . . . . . Haulers Reinforced . | . . . . . . . . Active Scanning Responses . | . . . . . . . . Cargo Convoy Interrupts . | . . . . . . . . Stealth | -11 -10 -9 -9 -7 -6 -6 -6 --------- Run | Jun Mat Mat Min Zio Pro Fac Gar Distress Signals . | . . . . . . . . Communications Jammed . | . . . . . . . . Distress Signals . | . . . . . . . . Times Spotted 42 | . 4 . . . 14 5 19 Peak Tracking Total 7 | . 4 1 . . 4 3 7 Tactical Retreats . | . . . . . . . . Traps | -11 -10 -9 -9 -7 -6 -6 -6 ------- Run | Jun Mat Mat Min Zio Pro Fac Gar Traps Triggered 2 | . 1 . . . . . 1 Indirectly . | . . . . . . . . Trap Hack Attempts . | . . . . . . . . Triggered . | . . . . . . . . Disarmed . | . . . . . . . . Reprogrammed . | . . . . . . . . Reused . | . . . . . . . . Traps Extracted . | . . . . . . . . Installed . | . . . . . . . . Triggered . | . . . . . . . . Machines | -11 -10 -9 -9 -7 -6 -6 -6 ---------- Run | Jun Mat Mat Min Zio Pro Fac Gar Machines Disabled . | . . . . . . . . Max in Single Turn . | . . . . . . . . Machines Repaired . | . . . . . . . . Machines Sabotaged . | . . . . . . . . Overloaded Fab Kills . | . . . . . . . . Hacking | -11 -10 -9 -9 -7 -6 -6 -6 --------- Run | Jun Mat Mat Min Zio Pro Fac Gar Machines Accessed 3 | . 1 1 . . . 1 . Terminals 1 | . 1 . . . . . . Fabricators . | . . . . . . . . Repair Stations . | . . . . . . . . Recycling Units . | . . . . . . . . Scanalyzers 1 | . . 1 . . . . . Garrison Access 1 | . . . . . . 1 . Total Hacks 8 | . 2 4 . . . 2 . Successful 8 | . 2 4 . . . 2 . Failed . | . . . . . . . . Catastrophic . | . . . . . . . . Database Lockouts . | . . . . . . . . Manual 1 | . . . . 1 . . . Terminals 2 | . 2 . . . . . . Fabricators . | . . . . . . . . Repair Stations . | . . . . . . . . Recycling Units . | . . . . . . . . Scanalyzers 4 | . . 4 . . . . . Garrison Access 2 | . . . . . . 2 . Terminal Hacks 2 | . 2 . . . . . . Prototype ID Bank 1 | . 1 . . . . . . Hauler Manifests 1 | . 1 . . . . . . Fabricator Hacks . | . . . . . . . . Repair Station Hacks . | . . . . . . . . Recycling Unit Hacks . | . . . . . . . . Scanalyzer 4 | . . 4 . . . . . Insert Component 2 | . . 2 . . . . . Analyze 2 | . . 2 . . . . . Garrison Access Hacks 2 | . . . . . . 2 . Unlock Access 1 | . . . . . . 1 . Coupler Status 1 | . . . . . . 1 . Unauthorized Hacks . | . . . . . . . . Terminals . | . . . . . . . . Fabricators . | . . . . . . . . Repair Stations . | . . . . . . . . Recycling Units . | . . . . . . . . Scanalyzers . | . . . . . . . . Garrison Access . | . . . . . . . . Data Cores Recovered . | . . . . . . . . Used . | . . . . . . . . Hacking Detections 1 | . 1 . . . . . . Full Trace Events . | . . . . . . . . Feedback Events . | . . . . . . . . Feedback Blocked . | . . . . . . . . Robot Schematics Acquired 3 | . . . . 3 . . . Robots Built . | . . . . . . . . Authchips . | . . . . . . . . Time . | . . . . . . . . Total Robot Build Rating . | . . . . . . . . Part Schematics Acquired 16 | . . 2 . 14 . . . Parts Built . | . . . . . . . . Authchips . | . . . . . . . . Time . | . . . . . . . . Total Part Build Rating . | . . . . . . . . Parts Repaired . | . . . . . . . . Time . | . . . . . . . . Parts Recycled . | . . . . . . . . Recycled Matter . | . . . . . . . . Retrieved Matter . | . . . . . . . . Retrieved Components . | . . . . . . . . Parts Scanalyzed 2 | . . 2 . . . . . Part Schematics Acquired 2 | . . 2 . . . . . Parts Damaged . | . . . . . . . . Bothacking | -11 -10 -9 -9 -7 -6 -6 -6 ------------ Run | Jun Mat Mat Min Zio Pro Fac Gar Used RIF Installer . | . . . . . . . . Robots Hacked . | . . . . . . . . Non-combat . | . . . . . . . . Combat . | . . . . . . . . Robot Hacks Applied . | . . . . . . . . Relay Couplers Released . | . . . . . . . . Fabnet Peak Effective % . | . . . . . . . . Robots Rewired . | . . . . . . . . Allies Hacked . | . . . . . . . . Hacks Repelled . | . . . . . . . . Allies | -11 -10 -9 -9 -7 -6 -6 -6 -------- Run | Jun Mat Mat Min Zio Pro Fac Gar Total Allies 5 | . . . 1 4 . . . Largest Group 4 | . . . 1 4 4 4 3 Highest-Rated Group 152 | . . . 31 152 152 149 106 Highest-Rated Ally 39 | . . . 31 39 39 39 39 Total Orders . | . . . . . . . . Ally Attacks 52 | . . . . . 25 14 13 Total Damage 1204 | . . . . . 227 371 606 Kills 9 | . . . . . 2 4 3 Allies Corrupted . | . . . . . . . . Allies Melted . | . . . . . . . . Intel | -11 -10 -9 -9 -7 -6 -6 -6 ------- Run | Jun Mat Mat Min Zio Pro Fac Gar Robot Analysis Total . | . . . . . . . . Derelict Logs Recovered 5 | . . . 1 1 3 . . Drone Launches . | . . . . . . . . Drone Recoveries . | . . . . . . . . Exploration | -11 -10 -9 -9 -7 -6 -6 -6 ------------- Run | Jun Mat Mat Min Zio Pro Fac Gar Turns Passed 3285 | 60 377 133 168 905 1044 333 265 Spaces Moved 3071 | 65 373 135 158 953 1036 204 147 Core 7 | 4 . . . . . . 3 Treads . | . . . . . . . . Legs 9 | . . . . . . . 9 Wheels 3055 | 61 373 135 158 953 1036 204 135 Hover . | . . . . . . . . Flight . | . . . . . . . . Fastest Speed 50 | 50 80 80 95 95 95 100 100 Average Speed 97 | 78 80 84 95 95 95 148 122 Slowest Speed 350 | 80 80 95 95 95 125 155 350 Overloaded Moves . | . . . . . . . . Propulsion Burnouts . | . . . . . . . . Robots Hopped . | . . . . . . . . Cave-ins Triggered . | . . . . . . . . Exploration Rate (%) 34 | 4 47 15 27 64 85 4 33 Regions Visited 7 Branch Regions 3 Pre-discovered Areas 1 | . . . . 1 . . . Known Exits Taken 1 | . . . . . . 1 . Unknown Exits Taken 6 | 1 1 1 1 1 1 . . Scrap Searched 3 | . . . 1 . 2 . . Spaces Dug . | . . . . . . . . Terrain Destroyed 108 | . . . 27 . 61 . 20 Melee . | . . . . . . . . Projectile 2 | . . . . . 2 . . AOE 106 | . . . 27 . 59 . 20 Terrain Rammed . | . . . . . . . . Walls Destroyed . | . . . . . . . . Machines Disabled . | . . . . . . . . Actions | -11 -10 -9 -9 -7 -6 -6 -6 --------- Run | Jun Mat Mat Min Zio Pro Fac Gar Total 3244 | 70 426 153 165 952 1066 220 192 Wait 18 | . 13 . . . 5 . . Move 3064 | 64 372 134 157 952 1035 203 147 Hop . | . . . . . . . . Pick Up 29 | . 6 8 2 . 6 2 5 Fast Attach 12 | 6 1 . . . . 1 4 Attach 20 | . 1 3 . . 3 6 7 Detach . | . . . . . . . . Swap 9 | . 1 4 1 . 2 . 1 Drop 14 | . 1 4 . . 2 2 5 Fire 78 | . 31 . 5 . 13 6 23 Melee . | . . . . . . . . Ram . | . . . . . . . . Kick . | . . . . . . . . Crush . | . . . . . . . . Escape Stasis . | . . . . . . . . Rewire . | . . . . . . . . Trap . | . . . . . . . . Miscellaneous . | . . . . . . . . Route ------- -11/Junkyard -10/Materials (discovered 2 exits: *Mat / [*Min]) -9/Materials -9/Mines -7/Zion -6/Proximity Caves -6/Factory -6/Garrison History --------- Turn | Location | Event 36 | -11/Junkyard | Discovered new exit (range 16) 61 | -11/Junkyard | Entered Materials 247 | -10/Materials | Discovered new exit (range 13) 301 | -10/Materials | Build established: Mutant 347 | -10/Materials | Discovered new exit (range 15) 438 | -10/Materials | Entered another Materials area 438 | -9/Materials | Evolved 2 slots: Propulsion x1, Weapon x1 539 | -9/Materials | Discovered new exit (range 16) 571 | -9/Materials | Entered Mines 574 | -9/Mines | Received a Mining Laser from a helpful Derelict 615 | -9/Mines | YI-UF0 nonchalantly dropped a Grenade Launcher on the ground 623 | -9/Mines | Learned Materials trap positions 731 | -9/Mines | A Derelict revealed a hidden shortcut to a safe place 739 | -9/Mines | Entered Zion 739 | -7/Zion | Accompanied by 1 ally 840 | -7/Zion | System corruption cleaned by Quarantine Array 1212 | -7/Zion | Imprinted 1214 | -7/Zion | Declared Zion's savior 1615 | -7/Zion | Discovered new exit (range 12) 1644 | -7/Zion | Entered Proximity Caves 1644 | -6/Proximity Caves | Accompanied by 4 allies 1656 | -6/Proximity Caves | Spotter reported a threat 1711 | -6/Proximity Caves | Learned Factory terminal intel 1766 | -6/Proximity Caves | Lost 4 parts (2n2w) 1896 | -6/Proximity Caves | Learned Factory garrison access intel 1940 | -6/Proximity Caves | Spotter reported a threat 1950 | -6/Proximity Caves | Spotter reported a threat 1993 | -6/Proximity Caves | Spotter reported a threat 2006 | -6/Proximity Caves | Spotter reported a threat 2142 | -6/Proximity Caves | Spotter reported a threat 2206 | -6/Proximity Caves | Spotter reported a threat 2429 | -6/Proximity Caves | Spotter reported a threat 2482 | -6/Proximity Caves | Spotter reported a threat 2515 | -6/Proximity Caves | Spotter reported a threat 2531 | -6/Proximity Caves | Attracted the attention of an 0b10 checkpoint 2535 | -6/Proximity Caves | Spotter reported a threat 2568 | -6/Proximity Caves | Spotter reported a threat 2621 | -6/Proximity Caves | Spotter reported a threat 2651 | -6/Proximity Caves | Learned Factory terminal intel 2662 | -6/Proximity Caves | Discovered new exit (range 13) 2688 | -6/Proximity Caves | Entered Factory 2688 | -6/Factory | Accompanied by 4 allies 2688 | -6/Factory | Evolved 6 slots: Power x1, Propulsion x1, Utility x3, Weapon x1 2689 | -6/Factory | Loaded intel: 26 terminal locations 2690 | -6/Factory | Loaded intel: 4 garrison access locations 2980 | -6/Factory | Build established: Skirmisher 3001 | -6/Factory | Identified exit to Garrison 3021 | -6/Factory | Entered Garrison 3021 | -6/Garrison | Accompanied by 3 allies 3039 | -6/Garrison | Spotted B-75 Beast 3047 | -6/Garrison | Destroyed B-75 Beast 3083 | -6/Garrison | Lost 6 parts (2u4w) 3097 | -6/Garrison | Found Relay Coupler [Proto] 3160 | -6/Garrison | Triggered checkpoint 3172 | -6/Garrison | Triggered checkpoint 3260 | -6/Garrison | Core integrity fell below 50% 3279 | -6/Garrison | Core integrity fell below 20% 3286 | -6/Garrison | Destroyed by H-66 Slayer with Gauss Rifle Last Messages --------------- 03261_ Overheating: Core damaged (-102). 03261_ Dropped Broken Arm. Huge Wheel. 03263_ Penetrated by Slug. 03266_ Hvy. Plasma Cannon destroyed. 03266_ Penetrated by Slug. 03266_ Imp. Deuterium Engine destroyed. 03266_ Penetrated by Slug. 03267_ Critical hit (Burn: +37). 03268_ Dropped Hvy. Plasma Cannon. 03269_ Discarded Adv. Visual Processing Unit. 03270_ Dropped Adv. Heat Sink. 03271_ Penetrated by Slug. 03271_ Critical hit (Burn: +37). 03273_ Slug penetrates Wall. 03275_ Penetrated by Slug. 03275_ Carbon-fiber Leg destroyed. 03277_ Penetrated by Slug. 03277_ Carbon-fiber Leg destroyed. 03280_ Slug penetrates Wall. 03280_ Penetrated by Slug. Map ----- +----------------------------------------------------+ | ???????????????????????????????#" "# # # ""#? | | ???????????????????????????????? # %]## "#? | | ????????????????????????????????# ### = "#? | | ??????????# #################### ## "#? | | ??????????# % [ ] # !"#? | | ???????" % [ ! ## "#? | | ?????????????######## ######### ## ## !"#? | | ????????????????????# #???????# ## *!]## !"#? | | ????????????????????#####???????# ####"### ""#? | | ????????????????????????????????# #?? %!### ###? | | ????????????????????????????????# #?## ##?###??? | | ????????????????????????????????# #??###???????? | | ????????????????????????????????# #????????????? | | ????????????????????????????????# #????????????? | | ????????????????????????????????# #????????????? | | ????????????????????????????????# #????????????? | | ????????????????????????????????# #????????????? | | ????????????????????????????????# #????????????? | | ????????????????????????????????# #????????????? | | ????????????????????????????????# #????????????? | | ????????????????????????????????# #????????????? | | ????????????????????????????????# #???????????## | | ????????????????????????????????# #???????????# | | ????????????????????????????????# #??????###### | | ????????????????################# ######## | | ??????????# @ g]g = | | ??????????# g ]!g= | | ????????????######################+######## = ## | | ?????????????????????????????????# ######## *%## | | ?????????????????????????????????# [%= | | ?????????????????????????????????######## =!% | | ????????????????????????????????????????# * | | ????????????????????????????????????????# | | ????????????????????????????????????????### ## | | ??????????????????????????????????????????# ## | | ????????????????????????????????????????? | | ???????????????????????????????????????? | | ??????????????????????????????????????? | | ??????????????????????????????????????##########" | | ????????????????????????????????????????????????? | | ????????????????????????????????????????????????? | | ????????????????????????????????????????????????? | | ????????????????????????????????????????????????? | | ????????????????????????????????????????????????? | | ????????????????????????????????????????????????? | | ????????????????????????????????????????????????? | | ????????????????????????????????????????????????? | | ????????????????????????????????????????????????? | | ????????????????????????????????????????????????? | | ????????????????????????????????????????????????? | +----------------------------------------------------+ Best States ------------- Heat Dissipation 56 Energy Generation 25 Energy Capacity 470 Matter Stores 300 Matter Capacity 300 Sight Range 20 Robot Scan Range 15 Terrain Scan Range 16 Terrain Scan Density 10 Armor Coverage 225 Evasion (%) 44 Item Schematics ----------------- Wheel | -9/Materials | Scanalyzed Med. Armor Plating | -9/Materials | Scanalyzed System Restoration Module | -7/Zion | Archive Lyr. Medium Armor Plating | -7/Zion | Archive Imp. Titanium Leg | -7/Zion | Archive Weapon Cycler | -7/Zion | Archive EM Disruption Field | -7/Zion | Archive Imp. Trap Scanner | -7/Zion | Archive Hvy. Phase Cannon | -7/Zion | Archive Spk. Medium Treads | -7/Zion | Archive Plasma Cannon | -7/Zion | Archive Imp. Kinecellerator | -7/Zion | Archive Hvy. Riot Gun | -7/Zion | Archive Mak. Transmission Jammer | -7/Zion | Archive Hvy. Ion Cannon | -7/Zion | Archive Arm. Leg | -7/Zion | Archive Robot Schematics ------------------ B-48 Gladiator | -7/Zion | Archive A-02 Transporter | -7/Zion | Archive W-25 Informer | -7/Zion | Archive Fabricated ------------ Nothing Alien Tech Used ----------------- None Achievements -------------- I'm Back, Baby! Maybe Next Time I'll Detach My Launcher Serviceable Loadout Challenges ------------ None Game ------ Seed PhaseCombatGenerator Manual? 0 Play Time 00:37:31 Cumulative 11.7 hours Start 2023.11.14 @ 19:46:43 End 2023.11.14 @ 20:25:12 Sessions 1 Manual Loads 0 Difficulty Rogue Special Mode None Game No. 30 Rogue 30 Adventurer 0 Explorer 0 Win Type - Total 0 Types 0/0/0/0/0/0/0/0/0 Lore% 8 Gallery% 19 Achievement% 15 Wizard Run 0 Options --------- ASCII 0 Keyboard 0 Movement Vi Keybinds 0 Fullscreen 2 Font 14/TerminusBold Map View 72x54 Tactical HUD 1 Map Filters NONE Filters NONE Steam X RUN: 29293ea1-7a71-4d88-8034-8a543811c5c3